Cogmind - Beta 14 *** ADVENTURER MODE // 2024.12.28 @ 16:36:12 Player: Eko24 Result: Destroyed by as-09122 with Assembled Heavy Rifle Performance ------------- Evolutions (1) 500 Regions Visited (4) 800 Robots Destroyed (45) 225 Value Destroyed (968) 968 Prototype IDs (2) 40 Alien Tech Used (0) 0 Bonus (52) 52 TOTAL SCORE: 2585 Bonus ------- High Alert Combat Kills 52 Cogmind --------- Core Integrity 0/400 Matter 47/300 Energy 75/100 System Corruption 5% Temperature Danger (498) Movement Core (100) Ox1 Location -9/Exiles Parts ------- > --- POWER (1) -------- (None) > --- PROPULSION (4) --- (None) > --- UTILITY (2) ------ Signal Interpreter > --- WEAPON (2) ------- Advanced Beam Cannon > --- INVENTORY (5) ---- Mini Grenade Launcher Makeshift Sword Peak State ------------ > --- POWER ------------ Improved Ion Engine > --- PROPULSION ------- Flight Unit Flight Unit Flight Unit > --- UTILITY ---------- Visual Processing Unit Signal Interpreter > --- WEAPON ----------- Particle Gun Light Assault Rifle > --- INVENTORY -------- Ion Engine Small Laser [Rating: 11] Favorites ----------- Power Ion Engine Engine Ion Engine Propulsion Flight Unit Treads Light Treads Wheel Wheel Flight Unit Flight Unit Utility Signal Interpreter Device Improved Heat Sink Storage Small Storage Unit Processor Signal Interpreter Protection Light Armor Plating Weapon Light Assault Rifle Energy Gun Particle Gun Energy Cannon Advanced Beam Cannon Ballistic Gun Light Assault Rifle Launcher Mini Grenade Launcher Build | -11 -10 -9 -9 -9 ------- Run | Yrd Mat Mat Min Exi Slots Evolved 2 | . . 2 . . Power . | . . . . . Propulsion 2 | . . 2 . . Utility . | . . . . . Weapon . | . . . . . Parts Attached 30 | 6 10 13 1 . Power 5 | 1 . 4 . . Engine 5 | 1 . 4 . . Core . | . . . . . Reactor . | . . . . . Propulsion 8 | 2 4 2 . . Treads 1 | . . 1 . . Leg . | . . . . . Wheel 2 | 2 . . . . Hover . | . . . . . Flight 5 | . 4 1 . . Utility 8 | 1 5 2 . . Device 1 | . 1 . . . Storage 1 | 1 . . . . Processor 5 | . 4 1 . . Hackware . | . . . . . Protection 1 | . . 1 . . Artifact . | . . . . . Weapon 9 | 2 1 5 1 . Energy Gun 3 | . 1 2 . . Energy Cannon 1 | . . . 1 . Ballistic Gun 3 | 2 . 1 . . Ballistic Cannon . | . . . . . Launcher 2 | . . 2 . . Special Weapon . | . . . . . Impact Weapon . | . . . . . Slashing Weapon . | . . . . . Piercing Weapon . | . . . . . Special Melee Weapon . | . . . . . Unidentified Prototypes . | . . . . . Parts Lost 11 | . . 9 . 2 Power 3 | . . 2 . 1 Propulsion 4 | . . 4 . . Utility 2 | . . 1 . 1 Weapon 2 | . . 2 . . Highest Loss Streak 4 | . . 4 . 2 To Critical Strikes . | . . . . . Average Slot Usage (%) 58 | . 77 59 44 43 Engine 11 | . 14 10 11 10 Treads 1 | . . 5 . . Wheel 1 | . 6 . . . Flight 7 | . 20 4 . . Processor 13 | . 7 21 11 11 Protection 4 | . . . 11 10 Energy Gun 1 | . 1 4 . . Energy Cannon 4 | . . . 11 11 Ballistic Gun 9 | . 22 10 . . Peak Build Rating 11 | 6 8 11 6 6 Average Rating 6 | 3 5 8 6 5 On Entrance 4 | . 6 7 5 6 Naked Turns . | . . . . . Heaviest Build 13 | 13 13 11 12 12 Greatest Support 26 | 26 26 20 3 3 Greatest Overweight (x) 3 | 1 1 3 3 3 Average Overweight (x) . | . . . 3 2 Largest Inventory Capacity 8 | 8 8 5 5 5 Average Capacity 5 | 6 5 5 5 5 Most Carried 8 | 5 8 5 1 2 Average Carried 2 | 2 4 3 1 1 Final Capacity 8 | 8 5 5 5 5 Final Carried 4 | 3 4 1 1 2 Class Distribution -------------------- 100% | Mutant Dominant Class ---------------- Mutant | -10/Materials Mutant | -9/Materials Mutant | -9/Mines Mutant | -9/Exiles Resources | -11 -10 -9 -9 -9 ----------- Run | Yrd Mat Mat Min Exi Matter Collected 671 | 266 182 210 . 13 Remotely . | . . . . . Salvage Created 1331 | 100 309 854 . 68 Parts 95 | 4 19 65 . 7 Haulers Intercepted 1 | . . 1 . . Recyclers Shooed 3 | . . 3 . . Parts Field Recycled . | . . . . . Retrieved Matter . | . . . . . Parts Self-Destructed . | . . . . . Prevented . | . . . . . Kills | -11 -10 -9 -9 -9 ------- Run | Yrd Mat Mat Min Exi Combat Hostiles Destroyed 31 | . 8 22 . 1 Guns 18 | . 8 10 . . Cannons 1 | . . . . 1 AOE 12 | . . 12 . . Classes Destroyed 10 | 1 3 4 . 2 Worker 1 | . . 1 . . Builder 2 | . . 2 . . Hauler 1 | . . 1 . . Recycler 5 | 1 . 4 . . Watcher 3 | . 2 1 . . Swarmer 12 | . 3 9 . . Grunt 12 | . 5 7 . . Sentry 6 | . . 6 . . Zionite 3 | . . . . 3 Assembled 1 | . . . . 1 Best Kill Streak 22 | 1 3 22 . 4 Combat Bots Only 14 | . 3 14 . 1 Max Kills in Single Turn 3 | 1 1 3 . 1 Gunslinging . | . . . . . Exploded 2 | . . 2 . . Melee . | . . . . . Uniques/NPCs Destroyed . | . . . . . Combat | -11 -10 -9 -9 -9 -------- Run | Yrd Mat Mat Min Exi Hostile Shots Fired 181 | . 40 98 . 43 Missed 61 | . 13 35 . 13 Damage Taken 1488 | . 278 795 . 415 Core 500 | . 100 180 . 220 Absorbed by Shields . | . . . . . Ignored by Resistances 376 | . 89 184 . 103 Core Remaining (%) 80 | 100 60 . . . Volleys Fired 118 | 6 40 58 . 14 Largest 2 | 1 2 2 . 1 Hottest 95 | 20 40 95 . 68 Shots Fired 179 | 6 68 90 . 15 Gun 145 | 6 68 71 . . Cannon 15 | . . . . 15 Launcher 19 | . . 19 . . Special . | . . . . . Kinetic 123 | 6 68 49 . . Thermal 37 | . . 22 . 15 Explosive 19 | . . 19 . . Electromagnetic . | . . . . . Robot Hit Streak 29 | 5 21 29 . 4 Robot Miss Streak 2 | . 2 1 . 2 Penetration Max . | . . . . . Secondary Targets 2 | . 2 . . . Max Gunslinging Chain 1 | . 1 . . . Shots Hit Robots 126 | 5 53 58 . 10 Core Hits 75 | 2 22 47 . 4 Critical Kills . | . . . . . Critical Parts Destroyed 1 | . . 1 . . Critical Strikes 1 | . . 1 . . Destroy 1 | . . 1 . . Melee Attacks . | . . . . . Impact . | . . . . . Slashing . | . . . . . Piercing . | . . . . . Sneak Attacks . | . . . . . Combat Hostiles . | . . . . . Follow-up Attacks . | . . . . . Damage Inflicted 2795 | 41 518 2053 . 183 Guns 1291 | 41 518 732 . . Cannons 183 | . . . . 183 Explosions 1321 | . . 1321 . . Melee . | . . . . . Ramming . | . . . . . Kinetic 1024 | 41 518 465 . . Thermal 450 | . . 267 . 183 Explosive 1321 | . . 1321 . . Electromagnetic . | . . . . . Impact . | . . . . . Slashing . | . . . . . Piercing . | . . . . . Highest Corruption 5 | . . 5 5 5 Average Corruption 5 | . . 5 5 5 Corruption Purged . | . . . . . Corruption Blocked . | . . . . . Effects 18 | . . 2 . 16 Message Errors 5 | . . . . 5 Matter Fused 5 | . . . . 5 Heat Flow Errors 2 | . . . . 2 Energy Discharges 1 | . . . . 1 Data Loss (minor) 2 | . . 1 . 1 Data Loss (major) 1 | . . . . 1 Misfires 2 | . . 1 . 1 Overload Shots . | . . . . . Overflow Damage 62 | . . 62 . . Projectiles . | . . . . . Explosions 62 | . . 62 . . Melee . | . . . . . Knockbacks . | . . . . . Impact . | . . . . . Kinetic . | . . . . . Secondary . | . . . . . Self-Inflicted Damage 28 | . . 28 . . Shots 1 | . . 1 . . Rammed . | . . . . . Targets Rammed . | . . . . . Kicked . | . . . . . Crushed . | . . . . . Highest Temperature 558 | . 20 274 . 558 Average Temperature 91 | . 6 85 . 216 Received Heat Transfer 483 | . 141 216 . 126 Effects 5 | . . . . 5 Energy Bleed 1 | . . . . 1 Matter Decay 2 | . . . . 2 Damage (minor) 1 | . . . . 1 Damage (core) 1 | . . . . 1 Siege Activations . | . . . . . Robots Corrupted . | . . . . . Combat Hostiles . | . . . . . Parts Fried . | . . . . . Impact Corruptions . | . . . . . Robots Melted . | . . . . . Combat Hostiles . | . . . . . Parts Melted 4 | . . 1 . 3 Heat Transferred 963 | . . 654 . 309 Parts Sabotaged . | . . . . . Parts Stolen . | . . . . . Parts Stripped . | . . . . . Power Chain Reactions . | . . . . . Alert | -11 -10 -9 -9 -9 ------- Run | Yrd Mat Mat Min Exi Peak Influence 555 | 5 231 555 183 . Initial 183 | . 2 46 183 . Average 161 | 3 95 241 183 . Maximum Alert Level 2 | . 1 2 . . Low Security (%) 67 | 100 89 42 100 . Level 1 26 | . 10 46 . . Level 2 5 | . . 10 . . Level 3 . | . . . . . Level 4 . | . . . . . Level 5 . | . . . . . High Security . | . . . . . Max Security . | . . . . . Squads Dispatched 2 | . 1 1 . . Investigation 2 | . 1 1 . . Extermination . | . . . . . Reinforcement . | . . . . . Assault . | . . . . . Garrison . | . . . . . Intercept . | . . . . . Searches Triggered . | . . . . . Construction Impeded . | . . . . . Haulers Reinforced . | . . . . . Active Scanning Responses . | . . . . . Cargo Convoy Interrupts . | . . . . . Stealth | -11 -10 -9 -9 -9 --------- Run | Yrd Mat Mat Min Exi Distress Signals 1 | . . 1 . . Communications Jammed . | . . . . . Distress Signals . | . . . . . Times Spotted 46 | . 11 26 . 9 Peak Tracking Total 13 | . 4 6 . 13 Tactical Retreats 2 | . . 1 . 1 Traps | -11 -10 -9 -9 -9 ------- Run | Yrd Mat Mat Min Exi Traps Triggered 2 | . 1 1 . . Indirectly . | . . . . . Trap Hack Attempts . | . . . . . Triggered . | . . . . . Disarmed . | . . . . . Reprogrammed . | . . . . . Reused . | . . . . . Traps Extracted . | . . . . . Installed . | . . . . . Triggered . | . . . . . Machines | -11 -10 -9 -9 -9 ---------- Run | Yrd Mat Mat Min Exi Machines Disabled 3 | . . 1 . 2 Max in Single Turn 1 | . . 1 . 1 Machines Repaired . | . . . . . Machines Dismantled . | . . . . . Machines Sabotaged . | . . . . . Overloaded Fab Kills . | . . . . . Hacking | -11 -10 -9 -9 -9 --------- Run | Yrd Mat Mat Min Exi Machines Accessed 7 | . 6 . . 1 Terminals 5 | . 5 . . . Fabricators . | . . . . . Repair Stations . | . . . . . Recycling Units 1 | . 1 . . . Scanalyzers . | . . . . . Garrison Access . | . . . . . Total Hacks 31 | . 22 . . 9 Successful 23 | . 14 . . 9 Failed 8 | . 8 . . . Catastrophic . | . . . . . Database Lockouts . | . . . . . Manual . | . . . . . Terminals 19 | . 19 . . . Fabricators . | . . . . . Repair Stations . | . . . . . Recycling Units 3 | . 3 . . . Scanalyzers . | . . . . . Garrison Access . | . . . . . Terminal Hacks 20 | . 11 . . 9 Record 10 | . 1 . . 9 Robot Analysis 1 | . 1 . . . Prototype ID Bank 1 | . 1 . . . Alert Level 1 | . 1 . . . Unreport Threat 1 | . 1 . . . Locate Traps 1 | . 1 . . . Dispatch Records 1 | . 1 . . . Hauler Manifests 1 | . 1 . . . Registered Components 1 | . 1 . . . Zone Layout 2 | . 2 . . . Fabricator Hacks . | . . . . . Repair Station Hacks . | . . . . . Recycling Unit Hacks 3 | . 3 . . . Process 1 | . 1 . . . Report Inventory 2 | . 2 . . . Scanalyzer . | . . . . . Garrison Access Hacks . | . . . . . Unauthorized Hacks . | . . . . . Terminals . | . . . . . Fabricators . | . . . . . Repair Stations . | . . . . . Recycling Units . | . . . . . Scanalyzers . | . . . . . Garrison Access . | . . . . . Data Cores Recovered . | . . . . . Used . | . . . . . Hacking Detections 6 | . 6 . . . Full Trace Events 3 | . 3 . . . Feedback Events . | . . . . . Feedback Blocked . | . . . . . Robot Schematics Acquired . | . . . . . Robots Built . | . . . . . Authchips . | . . . . . Time . | . . . . . Total Robot Build Rating . | . . . . . Part Schematics Acquired . | . . . . . Parts Built . | . . . . . Authchips . | . . . . . Time . | . . . . . Total Part Build Rating . | . . . . . Parts Repaired . | . . . . . Time . | . . . . . Parts Recycled . | . . . . . Recycled Matter 151 | . 151 . . . Retrieved Matter . | . . . . . Retrieved Components . | . . . . . Parts Scanalyzed . | . . . . . Part Schematics Acquired . | . . . . . Parts Damaged . | . . . . . Bothacking | -11 -10 -9 -9 -9 ------------ Run | Yrd Mat Mat Min Exi Used RIF Installer . | . . . . . Robots Hacked . | . . . . . Non-combat . | . . . . . Combat . | . . . . . Robot Hacks Applied . | . . . . . Relay Couplers Released . | . . . . . Fabnet Peak Effective % . | . . . . . Robots Rewired . | . . . . . Allies Hacked . | . . . . . Hacks Repelled . | . . . . . Allies | -11 -10 -9 -9 -9 -------- Run | Yrd Mat Mat Min Exi Total Allies . | . . . . . Largest Group . | . . . . . Highest-Rated Group . | . . . . . Highest-Rated Ally . | . . . . . Total Orders . | . . . . . Ally Attacks . | . . . . . Total Damage . | . . . . . Kills . | . . . . . Allies Corrupted . | . . . . . Allies Melted . | . . . . . Intel | -11 -10 -9 -9 -9 ------- Run | Yrd Mat Mat Min Exi Robot Analysis Total 1 | . 1 . . . Derelict Logs Recovered . | . . . . . Drone Launches . | . . . . . Drone Recoveries . | . . . . . Exploration | -11 -10 -9 -9 -9 ------------- Run | Yrd Mat Mat Min Exi Turns Passed 1517 | 74 393 466 32 552 Spaces Moved 1051 | 55 488 231 16 261 Core 366 | 25 . 64 16 261 Treads 76 | . . 76 . . Legs . | . . . . . Wheels 87 | 30 57 . . . Hover . | . . . . . Flight 522 | . 431 91 . . Fastest Speed 34 | 50 37 34 200 100 Average Speed 103 | 87 46 113 200 199 Slowest Speed 200 | 100 117 200 200 200 Overloaded Moves . | . . . . . Propulsion Burnouts . | . . . . . Robots Hopped 1 | . 1 . . . Cave-ins Triggered 1 | . . 1 . . Exploration Rate (%) 37 | 5 75 28 6 75 Regions Visited 4 Branch Regions 2 Pre-discovered Areas 1 | . . . 1 . Known Exits Taken 3 | . 1 1 1 . Unknown Exits Taken 1 | 1 . . . . Scrap Searched . | . . . . . Spaces Dug . | . . . . . Terrain Destroyed 114 | . . 114 . . Melee . | . . . . . Projectile . | . . . . . AOE 114 | . . 114 . . Terrain Rammed . | . . . . . Walls Destroyed . | . . . . . Machines Disabled . | . . . . . Actions | -11 -10 -9 -9 -9 --------- Run | Yrd Mat Mat Min Exi Total 1319 | 75 598 350 16 280 Wait 69 | . 32 35 . 2 Move 1045 | 54 485 230 15 261 Hop 1 | . 1 . . . Pick Up 35 | 9 15 9 . 2 Fast Attach . | . . . . . Attach 21 | 6 7 8 . . Detach 1 | . 1 . . . Swap 9 | . 3 5 1 . Drop 20 | . 14 5 . 1 Fire 118 | 6 40 58 . 14 Melee . | . . . . . Ram . | . . . . . Kick . | . . . . . Crush . | . . . . . Escape Stasis . | . . . . . Rewire . | . . . . . Trap . | . . . . . Miscellaneous . | . . . . . Route ------- -11/Scrapyard -10/Materials (discovered 3 exits: *Mat x2 / [*Min]) -9/Materials -9/Mines -9/Exiles History --------- Turn | Location | Event 18 | -11/Scrapyard | Discovered new exit (range 15) 75 | -11/Scrapyard | Entered Materials 238 | -10/Materials | Discovered new exit (range 13) 326 | -10/Materials | Build established: Mutant 400 | -10/Materials | Discovered new exit (range 5) 452 | -10/Materials | Discovered new exit (range 5) 468 | -10/Materials | Identified exit to Materials 468 | -10/Materials | Entered another Materials area 468 | -9/Materials | Evolved 2 slots: Propulsion x2 568 | -9/Materials | Lost 3 parts (3n) 901 | -9/Materials | Crushed by falling debris 917 | -9/Materials | Discovered new exit (range 12) 932 | -9/Materials | Destroyed 14 combat bots 932 | -9/Materials | Identified exit to Mines 934 | -9/Materials | Entered Mines 935 | -9/Mines | Learned location of Storage (-7) 938 | -9/Mines | Lost 4 parts (1p1n1u1w) 958 | -9/Mines | Deemed a non-threat by the Exiles lab entrance 958 | -9/Mines | Discovered new exit (range 5) 964 | -9/Mines | Identified exit to Exiles 966 | -9/Mines | Entered Exiles 1018 | -9/Exiles | Met 8R-AWN 1062 | -9/Exiles | Met EX-HEX 1126 | -9/Exiles | Met EX-BIN 1318 | -9/Exiles | Met EX-DEC 1393 | -9/Exiles | Visited The Gauntlet 1480 | -9/Exiles | Attacked by the Exiles 1485 | -9/Exiles | Core integrity fell below 50% 1514 | -9/Exiles | Core integrity fell below 20% 1518 | -9/Exiles | Destroyed by as-09122 with Assembled Heavy Rifle Last Messages --------------- 01488_ Aluminum Leg melted. 01488_ Mak. Leg melted. 01488_ Structural Scanner melted. 01488_ GM-J5T destroyed. 01494_ ZX-C33 destroyed. 01496_ Machine disabled. 01505_ System corrupted: Heat flow error (+235). 01505_ Ion Engine destroyed. 01507_ Overheating: Matter decay (-10). 01508_ Overheating: Matter decay (-4). 01509_ Lgt. Armor Plating destroyed. 01510_ Overheating: Energy bleed (-18). 01510_ Machine disabled. 01511_ Critical hit (Burn: +37). 01512_ as-43370 destroyed. 01514_ Overheating: Core damaged (-48). 01514_ Acquired 13 matter. 01515_ Overheating: Signal Interpreter damaged (-9). 01516_ Acquired Mak. Sword. Map ----- +----------------------------------------------------+ | ???????????????????????????????????????#"""" | | ???????????????????????????????????????#"" | | ???????????????????????????????????????#" | | ???????????????????????????????????????#""" | | ???????????????????????????????????????## | | ????????????????????????????????????????#"" | | ????????????????????????????????????????##""" | | ?????????????????????????????????????????##"""" | | ??????????????????????????????????????????### | | ????????????????????????????????????????????##### | | ????????????????????????????????????????????????## | | ?????????????????????????????????????????????????# | | ?????????????????????????????????????????????????# | | ?????????????????????????????????????????????????# | | ??????????????????#####??????????????????????????# | | ????????????????#"""""""??????"""""????"""""?????# | | ????????????????#"" ""????"""""""????""""""????# | | ????????????????#" "?"""""""" "#???" """"#??# | | ????????????????#"" ""#""#""" """????"" """???# | | ?????????????????"" "?#""#"" ""????"" ""???# | | ???????????########"""###""###"""########"""###### | | ???????????#"""" "" """"""" """""""" """""" | | ???????????#" """ " """" | | ???????????#""" a *a! | | ???????????#"""" %= = | | ???????????#" @ z | | ???????????#""" " [%! "" | | ???????????#"" """ """""" " """"" " """" | | ???????????########"""########"""###""###"""###### | | ?????????????????"" ""????"" ""#""#"" ""???? | | ????????????????#""" """#???""" ""#""#""" ""???? | | ????????????????#" """ "#??#" """"""""#" " "#??? | | ?????????????????"""""""????"""""""????"""""""???? | | ?????????????????"""""""????""""""?????"""""""#??? | | ?????????????????????????????????????????####????? | | ?????????????????????????????????????????????????? | | ?????????????????????????????????????????????????? | | ?????????????????????????????????????????????????? | | ?????????????????????????????????????????????????? | | | | | | | | | | | | | | | | | | | | | | | +----------------------------------------------------+ Best States ------------- Heat Dissipation 39 Energy Generation 12 Energy Capacity 265 Matter Stores 300 Matter Capacity 300 Sight Range 18 Terrain Scan Density 10 Armor Coverage 150 Resistance: KI 20 Resistance: TH 20 Resistance: EX 20 Resistance: EM 20 Resistance: I 20 Resistance: S 20 Resistance: P 20 Evasion (%) 63 Targeting Accuracy 6 Recoil Reduction 1 Offensive Hacking 10 Item Schematics ----------------- None Robot Schematics ------------------ None Fabricated ------------ Nothing Alien Tech Used ----------------- None Achievements -------------- None Challenges ------------ None Game ------ Seed ActiveRestorationNukerbomber Manual? 0 Play Time 00:24:47 Cumulative 15.5 hours Start 2024.12.28 @ 16:13:10 End 2024.12.28 @ 16:36:12 Sessions 1 Manual Loads 0 Difficulty Adventurer Special Mode None Game No. 32 Rogue 27 Adventurer 5 Explorer 0 Win Type - Total 0 Types 0/0/0/0/0/0/0/0/0 Lore% 5 Gallery% 17 Achievement% 19 Wizard Run 0 Options --------- Layout 1 ASCII 0 Keyboard 0 Movement Mouse Keybinds 0 Fullscreen 1 Font 24/Smallcaps Map View 50x35 Zoom Use 0% Tactical HUD 1 Map Filters NONE Filters NONE Steam 1 RUN: e449a7e3-20dc-4e64-a0ff-5254ecaac69b